fUSD/lending_fUSD_20260615
["ID","MTS","AMOUNT","RATE_DAILY","PERIOD"]
[425113640,1781525438000,-500.0,0.00012569,2]
[425113642,1781525438000,-500.0,0.00012569,2]
[425113641,1781525438000,-500.0,0.00012569,2]
[425113644,1781525438000,-83.64111394,0.00012569,2]
[425113645,1781525438000,-500.0,0.00012569,2]
[425113646,1781525438000,-500.0,0.00012569,2]
[425113647,1781525438000,-399.93486627,0.00012569,2]
[425113643,1781525438000,-416.35888606,0.00012569,2]
[425113648,1781525439000,-100.06513373,0.00012569,2]
[425113649,1781525439000,-230.63486627,0.00013226,2]
[425113710,1781525441000,-319.68685379,0.00013534,2]
[425113718,1781525441000,-424.77676282,0.00013597,2]
[425113716,1781525441000,-500.0,0.00013589,2]
[425113708,1781525441000,-1587.03552334,0.00013508,2]
[425113712,1781525441000,-1000.0,0.00013578,2]
[425113709,1781525441000,-176.57283503,0.0001353,2]
[425113714,1781525441000,-319.0,0.00013579,2]
[425113715,1781525441000,-275.74593539,0.00013579,2]
[425113717,1781525441000,-216.09656886,0.00013592,2]
[425113719,1781525441000,-580.81898067,0.00013598,2]
[425113722,1781525441000,-250.0,0.00013627,2]
[425113720,1781525441000,-8279.57,0.00013608,2]
[425113721,1781525441000,-166.66,0.00013609,2]
[425113725,1781525441000,-250.0,0.00013627,2]
[425113727,1781525441000,-1587.03552333,0.00013663,2]
[425113735,1781525441000,-500.0,0.00013698,2]
[425113731,1781525441000,-500.0,0.00013698,2]
[425113723,1781525441000,-4000.0,0.00013627,2]
[425113707,1781525441000,-5979.30810058,0.00013508,2]
[425113690,1781525441000,-177.16830294,0.00013254,2]
[425113711,1781525441000,-300.0,0.00013534,2]
[425113734,1781525441000,-385.06,0.00013698,2]
[425113689,1781525441000,-1974.82253581,0.00013226,2]
[425113691,1781525441000,-177.16830294,0.00013258,2]
[425113693,1781525441000,-1000.0,0.00013325,2]
[425113692,1781525441000,-177.16830294,0.00013259,2]
[425113694,1781525441000,-1000.0,0.00013325,2]
[425113700,1781525441000,-859.36767199,0.00013379,2]
[425113695,1781525441000,-1000.0,0.00013325,2]
[425113706,1781525441000,-250.44677772,0.00013507,2]
[425113696,1781525441000,-1000.0,0.00013325,2]
[425113701,1781525441000,-630.81232801,0.00013379,2]
[425113697,1781525441000,-1000.0,0.00013325,2]
[425113698,1781525441000,-2000.0,0.00013326,2]
[425113702,1781525441000,-182.05,0.00013379,2]
[425113713,1781525441000,-316.0,0.00013579,2]
[425113705,1781525441000,-493149.8271,0.00013498,2]
[425113704,1781525441000,-320.0,0.00013439,2]
[425113703,1781525441000,-258.80835787,0.00013398,2]
[425113699,1781525441000,-166.66,0.0001335,2]
[425113729,1781525441000,-255.0,0.00013663,2]
[425113724,1781525441000,-300.0,0.00013627,2]
[425113730,1781525441000,-509.08488653,0.00013698,2]
[425113754,1781525441000,-5979.30810053,0.00013817,2]
[425113758,1781525441000,-600.0,0.00013827,2]
[425113760,1781525441000,-929.09,0.00013842,2]
[425113759,1781525441000,-704.28612464,0.00013827,2]
[425113761,1781525441000,-5979.30810053,0.00013972,2]
[425113773,1781525441000,-465113.75683218,0.0001425,2]
[425113762,1781525441000,-1587.03552333,0.00013972,2]
[425113772,1781525441000,-2318.14552739,0.0001421,7]
[425113763,1781525441000,-307.32,0.00013985,2]
[425113765,1781525441000,-228.62,0.00013985,2]
[425113769,1781525441000,-5979.30810053,0.00014127,2]
[425113764,1781525441000,-152.3,0.00013985,2]
[425113771,1781525441000,-500.0,0.00014178,2]
[425113766,1781525441000,-3750.75986575,0.0001399,2]
[425113767,1781525441000,-320.0,0.00014079,2]
[425113768,1781525441000,-995.15067344,0.00014105,2]
[425113770,1781525441000,-1587.03552333,0.00014127,2]
[425113749,1781525441000,-500.0,0.00013699,2]
[425113757,1781525441000,-500.0,0.0001382,2]
[425113755,1781525441000,-1587.03552333,0.00013817,2]
[425113752,1781525441000,-164.8,0.0001378,2]
[425113732,1781525441000,-500.0,0.00013698,2]
[425113728,1781525441000,-3000.0,0.00013663,2]
[425113736,1781525441000,-500.0,0.00013698,2]
[425113726,1781525441000,-5979.30810053,0.00013663,2]
[425113746,1781525441000,-500.0,0.00013698,2]
[425113753,1781525441000,-543.05,0.00013786,2]
[425113747,1781525441000,-500.0,0.00013698,2]
[425113739,1781525441000,-500.0,0.00013698,2]
[425113738,1781525441000,-500.0,0.00013698,2]
[425113737,1781525441000,-500.0,0.00013698,2]
[425113743,1781525441000,-500.0,0.00013698,2]
[425113774,1781525441000,-828.31462486,0.0001425,2]
[425113751,1781525441000,-320.0,0.00013759,2]
[425113750,1781525441000,-354.30169685,0.00013699,2]
[425113745,1781525441000,-500.0,0.00013698,2]
[425113733,1781525441000,-500.0,0.00013698,2]
[425113742,1781525441000,-500.0,0.00013698,2]
[425113741,1781525441000,-500.0,0.00013698,2]
[425113744,1781525441000,-500.0,0.00013698,2]
[425113740,1781525441000,-500.0,0.00013698,2]
[425113785,1781525446000,-500.0,0.00013904,2]
[425113786,1781525446000,-487.41624977,0.00013904,2]
[425113789,1781525447000,-520.41624977,0.0001425,2]
[425113792,1781525447000,-1828.12097731,0.0001425,2]
[425113788,1781525447000,-12.58375023,0.00013904,2]
[425113794,1781525447000,-660.5,0.0001425,2]
[425113790,1781525447000,-4660.10140586,0.0001425,2]
[425113791,1781525447000,-3041.0426906,0.0001425,2]
[425113795,1781525447000,-13232.33479579,0.0001425,2]
[425113797,1781525447000,-17642.19122762,0.0001425,2]
[425113804,1781525447000,-2461.6356765,0.0001425,2]
[425113807,1781525447000,-313.20488248,0.0001425,2]
[425113805,1781525447000,-174147.50549897,0.0001425,2]
[425113806,1781525447000,-409.9642705,0.0001425,2]
[425113809,1781525447000,-1840.84944306,0.0001425,2]
[425113808,1781525447000,-11489.20715264,0.0001425,2]
[425113810,1781525447000,-3466.8000002,0.0001425,2]
[425113800,1781525447000,-648.05219495,0.0001425,2]
[425113811,1781525700000,5528.0,0.000103,5]
[425113822,1781526414000,-5.52995345,0.00012151,2]
[425113821,1781526414000,-166.66,0.00012121,2]
[425113826,1781526434000,-294.47004655,0.00012151,2]
[425113827,1781526582000,-1543.14,0.00012176,2]
[425113837,1781526631000,-160.77156951,0.0001216,2]
[425113838,1781526631000,-272.828498,0.00012176,2]
[425113836,1781526631000,-160.77156951,0.0001216,2]
[425113840,1781526631000,-281.0,0.00012189,2]
[425113841,1781526631000,-300.0,0.00012189,2]
[425113845,1781526631000,-500.0,0.0001219,2]
[425113839,1781526631000,-150.0,0.00012179,2]
[425113842,1781526631000,-150.0,0.00012189,2]
[425113844,1781526631000,-500.0,0.0001219,2]
[425113843,1781526631000,-500.0,0.0001219,2]
[425113850,1781526631000,-500.0,0.0001219,2]
[425113851,1781526631000,-500.0,0.0001219,2]
[425113862,1781526631000,-500.0,0.0001219,2]
[425113863,1781526631000,-500.0,0.0001219,2]
[425113861,1781526631000,-500.0,0.0001219,2]
[425113860,1781526631000,-500.0,0.0001219,2]
[425113852,1781526631000,-500.0,0.0001219,2]
[425113853,1781526631000,-500.0,0.0001219,2]
[425113854,1781526631000,-500.0,0.0001219,2]
[425113856,1781526631000,-54.62836298,0.0001219,2]
[425113858,1781526631000,-445.37163702,0.0001219,2]
[425113871,1781526632000,-500.0,0.0001219,2]
[425113878,1781526632000,-500.0,0.0001219,2]
[425113876,1781526632000,-500.0,0.0001219,2]
[425113877,1781526632000,-500.0,0.0001219,2]
[425113874,1781526632000,-500.0,0.0001219,2]
[425113875,1781526632000,-500.0,0.0001219,2]
[425113872,1781526632000,-551.20456051,0.0001219,2]
[425113870,1781526632000,-500.0,0.0001219,2]
[425113865,1781526632000,-500.0,0.0001219,2]
[425113869,1781526632000,-500.0,0.0001219,2]
[425113868,1781526632000,-500.0,0.0001219,2]
[425113873,1781526632000,-500.0,0.0001219,2]
[425113867,1781526632000,-500.0,0.0001219,2]
[425113864,1781526632000,-500.0,0.0001219,2]
[425113882,1781526632000,-500.0,0.0001219,2]
[425113866,1781526632000,-500.0,0.0001219,2]
[425113880,1781526632000,-600.0,0.0001219,2]
[425113890,1781526632000,-283.08,0.00012434,2]
[425113884,1781526632000,-200.0,0.00012207,2]
[425113886,1781526632000,-185.82,0.00012243,2]
[425113891,1781526632000,-150.0,0.00012434,2]
[425113895,1781526632000,-346.86148837,0.00012629,2]
[425113898,1781526632000,-99.44793339,0.00012629,2]
[425113896,1781526632000,-500.0,0.00012629,2]
[425113893,1781526632000,-160.0,0.00012584,2]
[425113892,1781526632000,-160.0,0.00012573,2]
[425113894,1781526632000,-500.0,0.00012629,2]
[425113888,1781526632000,-182.05,0.00012329,2]
[425113889,1781526632000,-166.66,0.00012376,2]
[425113883,1781526632000,-8548.51,0.00012191,2]
[425113881,1781526632000,-500.0,0.0001219,2]
[425113887,1781526632000,-150.0,0.00012312,2]
[425113885,1781526632000,-200.64,0.00012207,7]
[425113879,1781526632000,-500.0,0.0001219,2]
[425113897,1781526632000,-424.10042288,0.00012629,2]
[425113945,1781526641000,-500.0,0.00012629,2]
[425113951,1781526641000,-166.66,0.00012631,2]
[425113954,1781526641000,-166.66,0.00012886,2]
[425113950,1781526641000,-500.0,0.00012629,2]
[425113949,1781526641000,-251.76921635,0.00012629,2]
[425113942,1781526641000,-400.55206661,0.00012629,2]
[425113946,1781526641000,-500.0,0.00012629,2]
[425113943,1781526641000,-172.45819505,0.00012629,2]
[425113941,1781526641000,-160.0,0.00012574,2]
[425113952,1781526641000,-152.0,0.00012714,2]
[425113944,1781526641000,-412.23572016,0.00012629,2]
[425113948,1781526641000,-500.0,0.00012629,2]
[425113953,1781526641000,-347.54,0.00012757,2]
[425113955,1781526641000,-624.19747981,0.00012903,2]
[425113947,1781526641000,-500.0,0.00012629,2]
[425113966,1781526641000,-849.0,0.00013298,2]
[425113965,1781526641000,-815.7942679,0.00013298,2]
[425113961,1781526641000,-1000.0,0.00013297,2]
[425113959,1781526641000,-21458.9717,0.00013233,2]
[425113963,1781526641000,-4173.64930551,0.00013298,2]
[425113958,1781526641000,-164.8,0.00013177,2]
[425113960,1781526641000,-255.0,0.00013274,2]
[425113964,1781526641000,-450.3687155,0.00013298,2]
[425113956,1781526641000,-154.09,0.00013059,2]
[425113957,1781526641000,-166.66,0.00013141,2]
[425113962,1781526641000,-250.0,0.00013297,2]
[425114030,1781526642000,-500.0,0.00013698,2]
[425114016,1781526642000,-509.08488653,0.00013698,2]
[425114022,1781526642000,-500.0,0.00013698,2]
[425114019,1781526642000,-500.0,0.00013698,2]
[425114014,1781526642000,-385.06,0.00013698,2]
[425114018,1781526642000,-500.0,0.00013698,2]
[425114024,1781526642000,-781.61,0.00013698,2]
[425114027,1781526642000,-781.61,0.00013698,2]
[425114026,1781526642000,-781.61,0.00013698,2]
[425114038,1781526642000,-6599.02,0.00013699,2]
[425114031,1781526642000,-500.0,0.00013698,2]
[425114032,1781526642000,-500.0,0.00013698,2]
[425114033,1781526642000,-500.0,0.00013698,2]
[425114036,1781526642000,-4999.99,0.00013699,2]
[425114037,1781526642000,-299.99,0.00013699,2]
[425114039,1781526642000,-499.99,0.00013699,2]
[425114034,1781526642000,-500.0,0.00013698,2]
[425114012,1781526642000,-500.0,0.00013698,2]
[425114029,1781526642000,-500.0,0.00013698,2]
[425114010,1781526642000,-500.0,0.00013698,2]
[425113970,1781526642000,-59072.01918734,0.00013298,2]
[425114006,1781526642000,-500.0,0.00013698,2]
[425114035,1781526642000,-1543.14,0.00013698,2]
[425113973,1781526642000,-4179.4237,0.00013298,2]
[425113969,1781526642000,-535.24431109,0.00013298,2]
[425113982,1781526642000,-2500.0,0.00013398,2]
[425113980,1781526642000,-166.66,0.00013396,2]
[425113972,1781526642000,-432580.41002771,0.00013298,2]
[425113976,1781526642000,-6063.94,0.00013379,2]
[425113971,1781526642000,-1497.39788495,0.00013298,2]
[425113977,1781526642000,-316.34,0.00013379,2]
[425113974,1781526642000,-22398.6688,0.00013298,2]
[425113986,1781526642000,-6019.53930362,0.00013479,2]
[425113984,1781526642000,-176.57283503,0.00013431,2]
[425113992,1781526642000,-151.0,0.00013495,2]
[425113997,1781526642000,-500.0,0.00013597,2]
[425113995,1781526642000,-151.0,0.00013495,2]
[425113989,1781526642000,-1694.50365804,0.00013479,2]
[425114003,1781526642000,-500.0,0.00013698,2]
[425113999,1781526642000,-6019.53930361,0.00013637,2]
[425114001,1781526642000,-1694.50365796,0.00013637,2]
[425114008,1781526642000,-500.0,0.00013698,2]
[425114041,1781526642000,-999.99,0.00013699,2]
[425114055,1781526642000,-2790.1259954,0.00013731,2]
[425114042,1781526642000,-3442.48,0.00013699,2]
[425114099,1781526642000,-580.81898067,0.0001415,2]
[425114104,1781526642000,-500.0,0.00014249,2]
[425114101,1781526642000,-781.61,0.00014249,2]
[425114105,1781526642000,-500.0,0.00014249,2]
[425114100,1781526642000,-151.0,0.00014247,2]
[425114106,1781526642000,-500.0,0.00014249,2]
[425114107,1781526642000,-353937.31283804,0.0001425,2]
[425114103,1781526642000,-250.0,0.00014249,2]
[425114108,1781526642000,-571.81396799,0.0001425,2]
[425114102,1781526642000,-3000.0,0.00014249,2]
[425114111,1781526642000,-2017.12832644,0.0001425,2]
[425114110,1781526642000,-1251.03,0.0001425,2]
[425114109,1781526642000,-1226.85239246,0.0001425,2]
[425114112,1781526642000,-19.13221705,0.0001425,2]
[425114040,1781526642000,-3208.71,0.00013699,2]
[425114114,1781526642000,-6823.49403011,0.0001425,2]
[425114115,1781526642000,-1179.76928242,0.0001425,2]
[425114116,1781526642000,-200.0,0.0001425,2]
[425114117,1781526642000,-2461.635677,0.0001425,2]
[425114096,1781526642000,-1694.50365796,0.00014111,2]
[425114094,1781526642000,-6019.53930361,0.00014111,2]
[425114113,1781526642000,-567.85778564,0.0001425,2]
[425114090,1781526642000,-2914.0046839,0.0001411,2]
[425114098,1781526642000,-250.44677772,0.00014148,2]
[425114054,1781526642000,-2244.0543914,0.00013731,2]
[425114059,1781526642000,-8781.953935,0.00013731,2]
[425114046,1781526642000,-354.30169685,0.00013699,2]
[425114045,1781526642000,-500.0,0.00013699,2]
[425114056,1781526642000,-19303.6129909,0.00013731,2]
[425114043,1781526642000,-80550.65,0.00013699,2]
[425114049,1781526642000,-500.0,0.00013703,2]
[425114051,1781526642000,-974.4115023,0.00013731,2]
[425114044,1781526642000,-3230.95,0.00013699,2]
[425114067,1781526642000,-185.82,0.00013773,2]
[425114052,1781526642000,-3259.8708526,0.00013731,2]
[425114078,1781526642000,-1694.50365796,0.00013953,2]
[425114075,1781526642000,-6019.53930361,0.00013953,2]
[425114084,1781526642000,-205.22223056,0.0001399,2]
[425114072,1781526642000,-1694.50365796,0.00013795,2]
[425114069,1781526642000,-6019.53930361,0.00013795,2]
[425114062,1781526642000,-10915.874428,0.00013731,2]
[425114081,1781526642000,-3750.75986575,0.0001399,2]
[425114087,1781526642000,-250.0,0.00014,2]
[425114136,1781526643000,-500.0,0.00014292,2]
[425114144,1781526643000,-500.0,0.00014292,2]
[425114137,1781526643000,-500.0,0.00014292,2]
[425114138,1781526643000,-500.0,0.00014292,2]
[425114139,1781526643000,-500.0,0.00014292,2]
[425114142,1781526643000,-500.0,0.00014292,2]
[425114141,1781526643000,-500.0,0.00014292,2]
[425114145,1781526643000,-130.35021266,0.00014292,2]
[425114146,1781526643000,-369.64978734,0.00014292,2]
[425114143,1781526643000,-500.0,0.00014292,2]
[425114150,1781526643000,-243.60306689,0.00014292,2]
[425114148,1781526643000,-256.39693311,0.00014292,2]
[425114155,1781526643000,-500.0,0.00014292,2]
[425114133,1781526643000,-159.843735,0.00014292,2]
[425114152,1781526643000,-500.0,0.00014292,2]
[425114135,1781526643000,-64.58045961,0.00014292,2]
[425114122,1781526643000,-200.0,0.0001425,2]
[425114134,1781526643000,-435.41954039,0.00014292,2]
[425114118,1781526643000,-3041.04269,0.0001425,2]
[425114128,1781526643000,-151.0,0.00014292,2]
[425114127,1781526643000,-151.0,0.00014292,2]
[425114121,1781526643000,-165.74218476,0.0001425,2]
[425114120,1781526643000,-200.0,0.0001425,2]
[425114119,1781526643000,-200.0,0.0001425,2]
[425114132,1781526643000,-151.0,0.00014292,2]
[425114123,1781526643000,-6019.53930361,0.00014268,2]
[425114126,1781526643000,-151.0,0.00014292,2]
[425114124,1781526643000,-1694.50365796,0.00014268,2]
[425114129,1781526643000,-151.0,0.00014292,2]
[425114130,1781526643000,-151.0,0.00014292,2]
[425114131,1781526643000,-151.0,0.00014292,2]
[425114140,1781526643000,-500.0,0.00014292,2]
[425114125,1781526643000,-151.0,0.00014292,2]
[425114157,1781526643000,-464.138882,0.00014292,2]
[425114162,1781526643000,-151.0,0.00014292,2]
[425114161,1781526643000,-151.0,0.00014292,2]
[425114188,1781526643000,-409.09275884,0.00014426,2]
[425114190,1781526643000,-248.42437777,0.00014426,2]
[425114159,1781526643000,-151.0,0.00014292,2]
[425114187,1781526643000,-3382.28487898,0.00014426,2]
[425114192,1781526643000,-548.61450698,0.00014426,2]
[425114193,1781526643000,-145.65878455,0.00014431,2]
[425114182,1781526643000,-162.555561,0.00014406,2]
[425114189,1781526643000,-442.78303316,0.00014426,2]
[425114195,1781526643000,-433.0,0.00014457,2]
[425114196,1781526643000,-152.39364804,0.0001449,2]
[425114198,1781526643000,-1444.31136676,0.00014497,2]
[425114197,1781526643000,-752.38,0.00014497,2]
[425114199,1781526643000,666.92393434,1.156e-05,11]
[425114200,1781526643000,666.92393434,1.18e-05,13]
[425114194,1781526643000,-204.34121545,0.00014431,2]
[425114181,1781526643000,-209.544279,0.00014406,2]
[425114191,1781526643000,-454.68174005,0.00014426,2]
[425114183,1781526643000,-281.835133,0.00014406,2]
[425114170,1781526643000,-151.0,0.00014292,2]
[425114164,1781526643000,-151.0,0.00014292,2]
[425114184,1781526643000,-220.637198,0.00014406,2]
[425114172,1781526643000,-543.05,0.00014299,2]
[425114174,1781526643000,-250.31325992,0.00014302,2]
[425114166,1781526643000,-151.0,0.00014292,2]
[425114176,1781526643000,-200.0,0.00014392,2]
[425114168,1781526643000,-151.0,0.00014292,2]
[425114175,1781526643000,-350.0,0.00014352,2]
[425114173,1781526643000,-2000.0,0.000143,2]
[425114178,1781526643000,-200.0,0.00014392,2]
[425114179,1781526643000,-200.0,0.00014392,2]
[425114186,1781526643000,-2228.16166579,0.00014426,2]
[425114180,1781526643000,-941.23353339,0.00014404,2]
[425114185,1781526643000,-350.0,0.0001441,2]
[425114177,1781526643000,-200.0,0.00014392,2]
[425114206,1781526645000,-151.0,0.00014497,2]
[425114207,1781526645000,-168.44,0.00014497,2]
[425114208,1781526645000,-6666.81863324,0.00014497,2]
[425114210,1781526645000,-12539.42349808,0.000145,3]
[425114214,1781526645000,-4066.4259084,0.000145,3]
[425114211,1781526645000,-10705.62061907,0.000145,3]
[425114212,1781526645000,-8048.6000539,0.000145,3]
[425114213,1781526645000,-2322.50375813,0.000145,3]
[425114215,1781526645000,-2136.27,0.000145,3]
[425114209,1781526645000,-781.61,0.00014499,2]
[425114226,1781526679000,222.30797811,1.156e-05,11]
[425114228,1781526679000,222.30797811,1.204e-05,14]
[425114227,1781526679000,222.30797811,1.18e-05,13]
[425114231,1781527201000,-2514.76,0.00012479,2]
[425114232,1781527219000,-2514.76,0.00012479,2]
[425114237,1781527691000,-265.14470192,0.00011678,2]
[425114238,1781527744000,-236.58332676,0.00011679,2]
[425114239,1781527751000,159.16600636,0.00014247,10]
[425114240,1781527758000,-596.41159247,0.00011808,2]
[425114252,1781527767000,-500.0,0.00012231,2]
[425114251,1781527767000,-500.0,0.00012231,2]
[425114249,1781527767000,-379.91110101,0.00012231,2]
[425114248,1781527767000,-419.92191175,0.00012231,2]
[425114247,1781527767000,-9.50809838,0.00012191,2]
[425114242,1781527767000,-1000.0,0.00011908,2]
[425114246,1781527767000,-306.83190162,0.00012191,2]
[425114244,1781527767000,-165.24,0.00012106,2]
[425114243,1781527767000,-211.0,0.00011925,2]
[425114241,1781527767000,-510.71719606,0.00011808,2]
[425114245,1781527767000,-174.72279326,0.00012131,2]
[425114254,1781527767000,-143.75050081,0.00012231,2]
[425114250,1781527767000,-500.0,0.00012231,2]
[425114255,1781527767000,-500.0,0.00012231,2]
[425114264,1781527767000,-500.0,0.00012231,2]
[425114253,1781527767000,-59.1707798,0.00012231,2]
[425114265,1781527767000,-354.83827464,0.00012231,2]
[425114262,1781527767000,-500.0,0.00012231,2]
[425114263,1781527767000,-500.0,0.00012231,2]
[425114266,1781527767000,-145.16172536,0.00012231,2]
[425114260,1781527767000,-275.23860987,0.00012231,2]
[425114259,1781527767000,-224.76139013,0.00012231,2]
[425114258,1781527767000,-500.0,0.00012231,2]
[425114257,1781527767000,-500.0,0.00012231,2]
[425114256,1781527767000,-500.0,0.00012231,2]
[425114261,1781527767000,-238.43500643,0.00012231,2]
[425114275,1781527768000,-500.0,0.00012231,2]
[425114267,1781527768000,-500.0,0.00012231,2]
[425114269,1781527768000,-500.0,0.00012231,2]
[425114268,1781527768000,-500.0,0.00012231,2]
[425114270,1781527768000,-500.0,0.00012231,2]
[425114272,1781527768000,-276.64983442,0.00012231,2]
[425114273,1781527768000,-500.0,0.00012231,2]
[425114274,1781527768000,-500.0,0.00012231,2]
[425114276,1781527768000,-252.06760672,0.00012231,2]
[425114271,1781527768000,-223.35016558,0.00012231,2]
[425114277,1781527768000,-300.0,0.00012232,2]
[425114279,1781527768000,-405.66627291,0.00012232,2]
[425114281,1781527768000,-242.87138932,0.00012232,2]
[425114280,1781527768000,-276.68968778,0.00012232,2]
[425114283,1781527768000,-319.68685379,0.00012359,2]
[425114286,1781527768000,-600.7369548,0.0001243,2]
[425114282,1781527768000,-763.82,0.00012273,2]
[425114284,1781527768000,-359.77768714,0.00012424,2]
[425114285,1781527768000,-152.22231286,0.00012424,2]
[425114278,1781527768000,-39.7944498,0.00012232,2]
[425114315,1781527837000,-450.58499,0.0001243,2]
[425114321,1781527838000,-183.1880552,0.0001243,2]
[425114323,1781527838000,-512.0,0.00012735,2]
[425114322,1781527838000,-1034.42,0.00012479,2]
[425114326,1781527838000,-3568.85180875,0.00012757,2]
[425114324,1781527838000,-184.22744048,0.0001275,2]
[425114325,1781527838000,-597.02108872,0.00012757,2]
[425114328,1781527838000,-2445.27287846,0.00012757,2]
[425114329,1781527838000,-1195.67687007,0.00012832,2]
[425114331,1781527838000,-2296.69426781,0.00012863,2]
[425114330,1781527838000,-250.0,0.00012863,2]
[425114327,1781527838000,-567.55422407,0.00012757,2]
[425114332,1781527839000,166.66,0.00011666,2]
[425114343,1781527842000,-3230.95,0.00012932,2]
[425114342,1781527842000,-299.99,0.00012932,2]
[425114340,1781527842000,-173.49935523,0.00012922,2]
[425114339,1781527842000,-166.66,0.00012894,2]
[425114335,1781527842000,-166.66,0.00012157,2]
[425114336,1781527842000,-166.66,0.00012402,2]
[425114338,1781527842000,-703.30573219,0.00012863,2]
[425114334,1781527842000,-166.66,0.00011911,2]
[425114337,1781527842000,-166.66,0.00012648,2]
[425114344,1781527842000,-68938.89066691,0.00012932,2]
[425114341,1781527842000,-300.0,0.00012931,2]
[425114347,1781527842000,-515.87853082,0.00012932,2]
[425114360,1781527842000,-10073.01902851,0.00012932,2]
[425114361,1781527842000,-1113271.97387715,0.00012932,2]
[425114365,1781527842000,-2500.0,0.00012933,2]
[425114362,1781527842000,-4182.1809,0.00012932,2]
[425114368,1781527842000,-499.99,0.00012933,2]
[425114366,1781527842000,-1904.85414314,0.00012933,2]
[425114364,1781527842000,-3754.27,0.00012933,2]
[425114367,1781527842000,-4999.99,0.00012933,2]
[425114345,1781527842000,-46517.35269661,0.00012932,2]
[425114363,1781527842000,-99403.5303,0.00012932,2]
[425114407,1781527843000,-500.0,0.00013698,2]
[425114414,1781527843000,-500.0,0.00013698,2]
[425114409,1781527843000,-500.0,0.00013698,2]
[425114420,1781527843000,-500.0,0.00013698,2]
[425114397,1781527843000,-150.0,0.00013488,2]
[425114399,1781527843000,-512.0,0.00013666,2]
[425114400,1781527843000,-500.0,0.00013698,2]
[425114412,1781527843000,-500.0,0.00013698,2]
[425114398,1781527843000,-1904.85414306,0.00013589,2]
[425114396,1781527843000,-250.0,0.00013454,2]
[425114404,1781527843000,-749.04,0.00013698,2]
[425114408,1781527843000,-500.0,0.00013698,2]
[425114413,1781527843000,-500.0,0.00013698,2]
[425114410,1781527843000,-500.0,0.00013698,2]
[425114405,1781527843000,-500.0,0.00013698,2]
[425114411,1781527843000,-574.93151324,0.00013698,2]
[425114428,1781527843000,-672.68,0.00013698,2]
[425114418,1781527843000,-500.0,0.00013698,2]
[425114432,1781527843000,-500.0,0.00013698,2]
[425114430,1781527843000,-672.68,0.00013698,2]
[425114433,1781527843000,-500.0,0.00013698,2]
[425114416,1781527843000,-500.0,0.00013698,2]
[425114431,1781527843000,-672.68,0.00013698,2]
[425114401,1781527843000,-500.0,0.00013698,2]
[425114406,1781527843000,-500.0,0.00013698,2]
[425114393,1781527843000,-1904.85414306,0.0001337,2]
[425114375,1781527843000,-83944.95,0.00012933,2]
[425114394,1781527843000,-790.45,0.00013379,2]
[425114426,1781527843000,-672.68,0.00013698,2]
[425114370,1781527843000,-29999.99,0.00012933,2]
[425114369,1781527843000,-999.99,0.00012933,2]
[425114372,1781527843000,-9252.66,0.00012933,2]
[425114371,1781527843000,-3208.71,0.00012933,2]
[425114380,1781527843000,-97725.0751,0.00013033,2]
[425114379,1781527843000,-15564.3578,0.00013033,2]
[425114374,1781527843000,-495.46,0.00012933,2]
[425114373,1781527843000,-3442.48,0.00012933,2]
[425114376,1781527843000,-6599.02,0.00012933,2]
[425114378,1781527843000,-597.076,0.00013031,2]
[425114377,1781527843000,-8472.028,0.00013031,2]
[425114402,1781527843000,-509.08488653,0.00013698,2]
[425114381,1781527843000,-512.0,0.00013045,2]
[425114385,1781527843000,-155.1844696,0.0001313,2]